[Event "*** Titled Tuesday Blitz"]
[Site "Chess.com"]
[Date "2020.04.28"]
[Round "5"]
[White "ChessMavenYeti"]
[Black "ajian"]
[Result "0-1"]
[WhiteElo "2180"]
[BlackElo "2344"]
[TimeControl "180+1"]
[EndTime "10:55:30 PDT"]
[Termination "ajian won on time"]

1. Nf3 {[%clk 0:02:55.3]} 1... Nf6 {[%clk 0:03:00]} 2. g3 {[%clk 0:02:49.6]}
2... d5 {[%clk 0:02:59.8]} 3. Bg2 {[%clk 0:02:47.7]} 3... e6 {[%clk 0:03:00.4]}
4. O-O {[%clk 0:02:44.8]} 4... a6 {[%clk 0:02:59.1]} 5. d3 {[%clk 0:01:54]} 5...
Be7 {[%clk 0:02:45.8]} 6. Nbd2 {[%clk 0:01:50.5]} 6... O-O {[%clk 0:02:42.4]} 7.
e4 {[%clk 0:01:46.4]} 7... c5 {[%clk 0:02:36.9]} 8. Re1 {[%clk 0:01:45.6]} 8...
Nc6 {[%clk 0:02:36.1]} 9. e5 {[%clk 0:01:45.3]} 9... Nd7 {[%clk 0:02:35.5]} 10.
Nf1 {[%clk 0:01:45.5]} 10... b5 {[%clk 0:02:25]} 11. h4 {[%clk 0:01:42.6]} 11...
Bb7 {[%clk 0:02:24.6]} 12. N1h2 {[%clk 0:01:41.4]} 12... d4 {[%clk 0:02:06]} 13.
Bf4 {[%clk 0:01:40.2]} 13... Nb6 {[%clk 0:02:05.1]} 14. Ng5 {[%clk 0:01:38.1]}
14... Nd5 {[%clk 0:01:56.2]} 15. Qh5 {[%clk 0:01:34.9]} 15... h6 {[%clk
0:01:51.3]} 16. Be4 {[%clk 0:01:27.9]} 16... Nxf4 {[%clk 0:01:10.3]} 17. gxf4
{[%clk 0:01:25.4]} 17... Na5 {[%clk 0:00:59.8]} 18. Ngf3 {[%clk 0:01:03.7]}
18... Bxe4 {[%clk 0:00:57.4]} 19. Rxe4 {[%clk 0:00:57.8]} 19... Qd5 {[%clk
0:00:41]} 20. Ng4 {[%clk 0:00:53]} 20... f5 {[%clk 0:00:25.7]} 21. Nxh6+ {[%clk
0:00:41.8]} 21... gxh6 {[%clk 0:00:26.6]} 22. Qg6+ {[%clk 0:00:41.6]} 22... Kh8
{[%clk 0:00:27.1]} 23. Qxh6+ {[%clk 0:00:41.6]} 23... Kg8 {[%clk 0:00:27.7]} 24.
Qg6+ {[%clk 0:00:26.3]} 24... Kh8 {[%clk 0:00:27.2]} 25. Ng5 {[%clk 0:00:10.3]}
25... Bxg5 {[%clk 0:00:19.3]} 26. Qh5+ {[%clk 0:00:10.3]} 26... Kg7 {[%clk
0:00:16.7]} 27. Qxg5+ {[%clk 0:00:09.7]} 27... Kf7 {[%clk 0:00:17.1]} 28. Ree1
{[%clk 0:00:07.4]} 28... Rg8 {[%clk 0:00:16.4]} 29. h5 {[%clk 0:00:05.9]} 29...
Rxg5+ {[%clk 0:00:15.8]} 30. fxg5 {[%clk 0:00:05.8]} 30... Qf3 {[%clk
0:00:14.9]} 31. g6+ {[%clk 0:00:05.5]} 31... Kg7 {[%clk 0:00:15.1]} 0-1

[Event "*** Titled Tuesday Blitz"]
[Site "Chess.com"]
[Date "2020.04.28"]
[Round "5"]
[White "ErikRonka"]
[Black "Bubi6"]
[Result "0-1"]
[WhiteElo "2423"]
[BlackElo "2639"]
[TimeControl "180+1"]
[EndTime "10:55:31 PDT"]
[Termination "Bubi6 won by resignation"]

1. e4 {[%clk 0:03:00.9]} 1... c6 {[%clk 0:02:59.6]} 2. Nf3 {[%clk 0:03:00.1]}
2... d5 {[%clk 0:03:00.5]} 3. d3 {[%clk 0:02:59.5]} 3... Nf6 {[%clk 0:02:57.2]}
4. e5 {[%clk 0:02:36.2]} 4... Nfd7 {[%clk 0:02:56.4]} 5. d4 {[%clk 0:02:29.9]}
5... c5 {[%clk 0:02:56.4]} 6. c3 {[%clk 0:02:29.2]} 6... Nc6 {[%clk 0:02:55.4]}
7. Be2 {[%clk 0:02:16.6]} 7... cxd4 {[%clk 0:02:55.3]} 8. cxd4 {[%clk
0:02:16.4]} 8... Nb6 {[%clk 0:02:55.9]} 9. h3 {[%clk 0:02:04.8]} 9... Bf5 {[%clk
0:02:55.8]} 10. Nc3 {[%clk 0:02:04.7]} 10... e6 {[%clk 0:02:56.3]} 11. O-O
{[%clk 0:02:04.5]} 11... Be7 {[%clk 0:02:55.3]} 12. Be3 {[%clk 0:01:48.3]} 12...
O-O {[%clk 0:02:54.1]} 13. Nd2 {[%clk 0:01:41.6]} 13... Rc8 {[%clk 0:02:52]} 14.
f4 {[%clk 0:01:38.7]} 14... Nb4 {[%clk 0:02:47.4]} 15. g4 {[%clk 0:01:24.2]}
15... Bc2 {[%clk 0:02:41.6]} 16. Qc1 {[%clk 0:01:13.8]} 16... Bd3 {[%clk
0:02:40.3]} 17. Qd1 {[%clk 0:01:02.1]} 17... Nc2 {[%clk 0:02:30]} 18. Bxd3
{[%clk 0:00:44.9]} 18... Nxe3 {[%clk 0:02:28.6]} 19. Qb1 {[%clk 0:00:42.4]}
19... Nxf1 {[%clk 0:02:27]} 20. Bxh7+ {[%clk 0:00:42]} 20... Kh8 {[%clk
0:02:27.4]} 21. Nxf1 {[%clk 0:00:41.8]} 21... g6 {[%clk 0:02:25.6]} 22. Bxg6
{[%clk 0:00:41.8]} 22... fxg6 {[%clk 0:02:26]} 23. Qxg6 {[%clk 0:00:39.6]} 23...
Qe8 {[%clk 0:02:25.7]} 24. Qh6+ {[%clk 0:00:37.7]} 24... Kg8 {[%clk 0:02:26]}
25. Ng3 {[%clk 0:00:24.6]} 25... Rf7 {[%clk 0:02:14.7]} 26. f5 {[%clk
0:00:20.6]} 26... exf5 {[%clk 0:02:06.2]} 27. Nxf5 {[%clk 0:00:16.5]} 27... Rc6
{[%clk 0:02:04.1]} 28. Qh5 {[%clk 0:00:12.4]} 28... Bf8 {[%clk 0:01:48.9]} 29.
Ne2 {[%clk 0:00:11.1]} 29... Qe6 {[%clk 0:01:46.3]} 30. Nf4 {[%clk 0:00:10.8]}
30... Qd7 {[%clk 0:01:40.5]} 31. Ng6 {[%clk 0:00:10.9]} 31... Bg7 {[%clk
0:01:32.5]} 32. Rf1 {[%clk 0:00:08.6]} 32... Qe6 {[%clk 0:01:24.2]} 33. Nxg7
{[%clk 0:00:08.3]} 33... Qxg6 {[%clk 0:01:23]} 34. Rxf7 {[%clk 0:00:04.3]} 34...
Qxh5 {[%clk 0:01:20.5]} 35. Nxh5 {[%clk 0:00:02.2]} 35... Kxf7 {[%clk 0:01:21]}
36. Nf4 {[%clk 0:00:01.4]} 36... Rc2 {[%clk 0:01:16.2]} 37. g5 {[%clk
0:00:01.2]} 37... Nc4 {[%clk 0:01:17.1]} 38. h4 {[%clk 0:00:01.5]} 38... Ne3
{[%clk 0:01:17]} 39. h5 {[%clk 0:00:02.4]} 39... Nf5 {[%clk 0:01:14.2]} 40. g6+
{[%clk 0:00:03.3]} 40... Kg7 {[%clk 0:01:12.1]} 41. Nxd5 {[%clk 0:00:04.2]}
41... Rxb2 {[%clk 0:01:08.8]} 42. Nf6 {[%clk 0:00:05.1]} 42... Kh6 {[%clk
0:01:07]} 43. Ne8 {[%clk 0:00:04.8]} 43... Rd2 {[%clk 0:00:59.1]} 44. d5 {[%clk
0:00:03.7]} 44... Rxd5 {[%clk 0:00:55]} 45. e6 {[%clk 0:00:04.6]} 45... Re5
{[%clk 0:00:53.7]} 46. Nf6 {[%clk 0:00:04.7]} 46... Rxe6 {[%clk 0:00:52.2]} 47.
Ng8+ {[%clk 0:00:01.9]} 47... Kxh5 {[%clk 0:00:50.6]} 0-1

[Event "*** Titled Tuesday Blitz"]
[Site "Chess.com"]
[Date "2020.04.28"]
[Round "5"]
[White "GamayevOleg"]
[Black "mattcolins2025"]
[Result "1-0"]
[WhiteElo "2506"]
[BlackElo "2298"]
[TimeControl "180+1"]
[EndTime "10:55:33 PDT"]
[Termination "GamayevOleg won by resignation"]

1. d3 {[%clk 0:03:00.9]} 1... d5 {[%clk 0:02:58.8]} 2. e4 {[%clk 0:03:01.7]}
2... dxe4 {[%clk 0:02:50.4]} 3. dxe4 {[%clk 0:03:02.6]} 3... Qxd1+ {[%clk
0:02:49.9]} 4. Kxd1 {[%clk 0:03:03.5]} 4... e5 {[%clk 0:02:50]} 5. Nf3 {[%clk
0:03:03.8]} 5... Bd6 {[%clk 0:02:48]} 6. Nfd2 {[%clk 0:03:03.4]} 6... Nc6 {[%clk
0:02:47.4]} 7. f3 {[%clk 0:03:03.6]} 7... Be6 {[%clk 0:02:46.9]} 8. c3 {[%clk
0:03:04.5]} 8... Nge7 {[%clk 0:02:44.8]} 9. Kc2 {[%clk 0:03:05.4]} 9... O-O-O
{[%clk 0:02:44.6]} 10. a4 {[%clk 0:03:05.7]} 10... a5 {[%clk 0:02:43.2]} 11. Bc4
{[%clk 0:03:05.5]} 11... Bxc4 {[%clk 0:02:42.2]} 12. Nxc4 {[%clk 0:03:06.4]}
12... Bc5 {[%clk 0:02:42.6]} 13. Bg5 {[%clk 0:03:05.4]} 13... f6 {[%clk
0:02:42.7]} 14. Bc1 {[%clk 0:03:05]} 14... Bb6 {[%clk 0:02:29.7]} 15. Nbd2
{[%clk 0:03:04.5]} 15... h5 {[%clk 0:02:26]} 16. Nb3 {[%clk 0:03:04.2]} 16... h4
{[%clk 0:02:23.9]} 17. h3 {[%clk 0:03:04.5]} 17... Ng6 {[%clk 0:02:21.5]} 18.
Bd2 {[%clk 0:03:04.7]} 18... Nf4 {[%clk 0:02:21.3]} 19. Bxf4 {[%clk 0:03:03.9]}
19... exf4 {[%clk 0:02:21.6]} 20. Rad1 {[%clk 0:03:04.8]} 20... Rxd1 {[%clk
0:02:13.7]} 21. Rxd1 {[%clk 0:03:03.9]} 21... Rd8 {[%clk 0:02:11.7]} 22. Rxd8+
{[%clk 0:03:03.7]} 22... Kxd8 {[%clk 0:02:10.4]} 23. Kd3 {[%clk 0:03:04.6]}
23... Ke7 {[%clk 0:02:09.9]} 24. Nc1 {[%clk 0:03:04]} 24... Ke6 {[%clk
0:02:09.3]} 25. Ne2 {[%clk 0:03:04]} 25... g5 {[%clk 0:02:09.2]} 26. b3 {[%clk
0:03:03]} 26... Ne5+ {[%clk 0:02:09.1]} 27. Nxe5 {[%clk 0:03:02.8]} 27... fxe5
{[%clk 0:02:07.9]} 28. Kc4 {[%clk 0:03:02.5]} 28... c6 {[%clk 0:02:04.8]} 29.
Nc1 {[%clk 0:03:01.6]} 29... Bd8 {[%clk 0:02:02.7]} 30. Nd3 {[%clk 0:03:02.4]}
30... b6 {[%clk 0:02:02.4]} 31. b4 {[%clk 0:03:02.5]} 31... Kd6 {[%clk
0:02:01.6]} 32. bxa5 {[%clk 0:02:59.6]} 32... bxa5 {[%clk 0:02:01.8]} 33. Nc5
{[%clk 0:02:59.2]} 33... Bb6 {[%clk 0:02:01.8]} 34. Nb3 {[%clk 0:02:58.3]} 34...
Bd8 {[%clk 0:01:57.7]} 35. Kd3 {[%clk 0:02:58.5]} 35... Bb6 {[%clk 0:01:56.2]}
36. Nd2 {[%clk 0:02:59.4]} 36... Bc7 {[%clk 0:01:54.7]} 37. Kc2 {[%clk
0:02:55.1]} 37... Kc5 {[%clk 0:01:53.5]} 38. Kb3 {[%clk 0:02:47.8]} 38... Bb8
{[%clk 0:01:49.2]} 39. Nb1 {[%clk 0:02:48.1]} 39... Bc7 {[%clk 0:01:48.1]} 40.
Na3 {[%clk 0:02:48.4]} 40... Bb8 {[%clk 0:01:48]} 41. Kb2 {[%clk 0:02:48.7]}
41... Bc7 {[%clk 0:01:47.1]} 42. Kc2 {[%clk 0:02:49.1]} 42... Bb8 {[%clk
0:01:46.4]} 43. Kd3 {[%clk 0:02:49.6]} 43... Kb6 {[%clk 0:01:39.4]} 44. Nc4+
{[%clk 0:02:46]} 44... Ka6 {[%clk 0:01:39]} 45. Kc2 {[%clk 0:02:45.8]} 45... Bc7
{[%clk 0:01:39.2]} 46. Nb2 {[%clk 0:02:46]} 46... Kb6 {[%clk 0:01:38.8]} 47. Nd3
{[%clk 0:02:46.4]} 47... Bd6 {[%clk 0:01:35.6]} 48. Kb3 {[%clk 0:02:46.6]} 48...
Ka6 {[%clk 0:01:36]} 49. Nb2 {[%clk 0:02:42.7]} 49... Bb8 {[%clk 0:01:34.9]} 50.
Kc4 {[%clk 0:02:37.5]} 50... Kb6 {[%clk 0:01:35.1]} 51. Nd3 {[%clk 0:02:34]}
51... Bd6 {[%clk 0:01:32.6]} 52. Nc1 {[%clk 0:02:34.3]} 52... Bb8 {[%clk
0:01:32.5]} 53. Nb3 {[%clk 0:02:34.5]} 53... Bc7 {[%clk 0:01:32.4]} 54. Nd2
{[%clk 0:02:34.4]} 54... Bd6 {[%clk 0:01:32.6]} 55. Nf1 {[%clk 0:02:35.2]} 55...
Bb8 {[%clk 0:01:32.5]} 56. Nh2 {[%clk 0:02:35.6]} 56... Bd6 {[%clk 0:01:32]} 57.
Ng4 {[%clk 0:02:36.5]} 57... Bc7 {[%clk 0:01:32.1]} 58. Nf6 {[%clk 0:02:35.2]}
58... Bd6 {[%clk 0:01:31.8]} 59. Ne8 {[%clk 0:02:35]} 59... Be7 {[%clk
0:01:29.9]} 60. Ng7 {[%clk 0:02:31.9]} 60... Bd6 {[%clk 0:01:26.9]} 61. Ne6
{[%clk 0:02:31.5]} 61... Be7 {[%clk 0:01:26.9]} 62. Ng7 {[%clk 0:02:27.6]} 62...
Bf6 {[%clk 0:01:26.8]} 63. Nf5 {[%clk 0:02:26.4]} 63... Bd8 {[%clk 0:01:25.9]}
64. Kd3 {[%clk 0:02:26.6]} 64... Bf6 {[%clk 0:01:25.7]} 65. Nd6 {[%clk
0:02:26.4]} 65... Bd8 {[%clk 0:01:24.2]} 66. Nc4+ {[%clk 0:02:26.4]} 66... Kc5
{[%clk 0:01:23.8]} 67. Nxe5 {[%clk 0:02:27.3]} 67... Be7 {[%clk 0:01:18.9]} 68.
Nc4 {[%clk 0:02:28.2]} 68... Bd8 {[%clk 0:01:18.8]} 69. Nd2 {[%clk 0:02:28.6]}
69... Be7 {[%clk 0:01:18.5]} 70. Nb3+ {[%clk 0:02:29.5]} 70... Kb6 {[%clk
0:01:18]} 71. Kc4 {[%clk 0:02:29.4]} 71... Bf6 {[%clk 0:01:16]} 72. Nc1 {[%clk
0:02:27.6]} 72... Bh8 {[%clk 0:01:16.2]} 73. Nd3 {[%clk 0:02:27.8]} 73... Bf6
{[%clk 0:01:16]} 74. Nc5 {[%clk 0:02:24.4]} 74... Be7 {[%clk 0:01:14.2]} 75. Ne6
{[%clk 0:02:14.3]} 75... Bf6 {[%clk 0:01:14.3]} 76. e5 {[%clk 0:02:14.2]} 76...
Be7 {[%clk 0:01:08.8]} 77. Nd4 {[%clk 0:02:12.6]} 77... Kc7 {[%clk 0:01:08.1]}
78. Nf5 {[%clk 0:02:10.7]} 78... Bf8 {[%clk 0:01:05.6]} 79. Kd4 {[%clk
0:02:10.7]} 79... Kd7 {[%clk 0:01:04.7]} 80. Ke4 {[%clk 0:02:10.8]} 80... Kc7
{[%clk 0:01:00.5]} 81. e6 {[%clk 0:02:08.4]} 81... Ba3 {[%clk 0:00:57.1]} 82. c4
{[%clk 0:02:07.4]} 82... Bb4 {[%clk 0:00:54]} 83. Ke5 {[%clk 0:02:06]} 83...
Bc3+ {[%clk 0:00:54.2]} 84. Ke4 {[%clk 0:02:05.7]} 84... Bb4 {[%clk 0:00:54.6]}
85. Nh6 {[%clk 0:02:05.8]} 85... Kd6 {[%clk 0:00:51.4]} 86. Kf5 {[%clk
0:02:05.9]} 86... Be1 {[%clk 0:00:43.6]} 87. Nf7+ {[%clk 0:02:04.6]} 87... Ke7
{[%clk 0:00:44]} 88. Nxg5 {[%clk 0:02:04.2]} 88... Bg3 {[%clk 0:00:43.2]} 89.
Ne4 {[%clk 0:02:03.8]} 89... Be1 {[%clk 0:00:42.9]} 1-0

[Event "*** Titled Tuesday Blitz"]
[Site "Chess.com"]
[Date "2020.04.28"]
[Round "5"]
[White "XiaoKangZhong"]
[Black "Karina_Ivanova"]
[Result "1-0"]
[WhiteElo "2365"]
[BlackElo "2206"]
[TimeControl "180+1"]
[EndTime "10:55:36 PDT"]
[Termination "XiaoKangZhong won by resignation"]

1. e4 {[%clk 0:03:00.9]} 1... c6 {[%clk 0:02:59.5]} 2. d4 {[%clk 0:02:57.4]}
2... d5 {[%clk 0:02:59.2]} 3. e5 {[%clk 0:02:57.2]} 3... Bf5 {[%clk 0:02:57.9]}
4. h4 {[%clk 0:02:56.3]} 4... h5 {[%clk 0:02:56.8]} 5. Bd3 {[%clk 0:02:53.3]}
5... Bxd3 {[%clk 0:02:56.1]} 6. Qxd3 {[%clk 0:02:54.2]} 6... e6 {[%clk 0:02:56]}
7. Nf3 {[%clk 0:02:49.2]} 7... Ne7 {[%clk 0:02:55.1]} 8. O-O {[%clk 0:02:45.9]}
8... Ng6 {[%clk 0:02:50.7]} 9. g3 {[%clk 0:02:45.5]} 9... Nd7 {[%clk 0:02:48.7]}
10. Be3 {[%clk 0:02:42.7]} 10... c5 {[%clk 0:02:47.8]} 11. c4 {[%clk 0:02:41.4]}
11... cxd4 {[%clk 0:02:46]} 12. Bxd4 {[%clk 0:02:39]} 12... dxc4 {[%clk
0:02:43.2]} 13. Qxc4 {[%clk 0:02:39.9]} 13... Rc8 {[%clk 0:02:42.6]} 14. Qa4
{[%clk 0:02:36]} 14... a6 {[%clk 0:02:28.7]} 15. Nc3 {[%clk 0:02:33.4]} 15...
Bc5 {[%clk 0:02:22.1]} 16. Bxc5 {[%clk 0:02:29.5]} 16... Rxc5 {[%clk 0:02:21.6]}
17. Rad1 {[%clk 0:02:30.2]} 17... Rc7 {[%clk 0:02:11.3]} 18. Rd6 {[%clk
0:02:13.6]} 18... Nf8 {[%clk 0:01:24.1]} 19. Rfd1 {[%clk 0:02:11.6]} 19... Qc8
{[%clk 0:01:17]} 20. Nd2 {[%clk 0:00:59.3]} 20... b5 {[%clk 0:00:45.9]} 21. Qd4
{[%clk 0:00:58.7]} 21... Ng6 {[%clk 0:00:30.1]} 22. Nde4 {[%clk 0:00:54.5]}
22... Ngxe5 {[%clk 0:00:25.8]} 23. Rxe6+ {[%clk 0:00:47.7]} 23... fxe6 {[%clk
0:00:23.6]} 24. Nd6+ {[%clk 0:00:47.5]} 24... Kd8 {[%clk 0:00:20.1]} 25. Qf4
{[%clk 0:00:35.5]} 25... Qa8 {[%clk 0:00:17.4]} 26. Qg5+ {[%clk 0:00:25.1]}
26... Nf6 {[%clk 0:00:13.6]} 27. Qxe5 {[%clk 0:00:25.3]} 27... Rd7 {[%clk
0:00:12.2]} 28. Qxe6 {[%clk 0:00:23.2]} 28... Qc6 {[%clk 0:00:10.1]} 29. Nf7+
{[%clk 0:00:23.1]} 29... Kc7 {[%clk 0:00:09.5]} 30. Qe5+ {[%clk 0:00:22.6]}
30... Kb7 {[%clk 0:00:08.8]} 31. Rxd7+ {[%clk 0:00:22.6]} 31... Nxd7 {[%clk
0:00:07.4]} 32. Qe7 {[%clk 0:00:21.6]} 32... Rc8 {[%clk 0:00:05.7]} 33. Ne5
{[%clk 0:00:20.9]} 33... Qc7 {[%clk 0:00:05.5]} 34. Nxd7 {[%clk 0:00:18.8]}
34... Rd8 {[%clk 0:00:05.5]} 35. Nc5+ {[%clk 0:00:18.9]} 35... Kc6 {[%clk
0:00:05]} 36. Qxc7+ {[%clk 0:00:19.3]} 36... Kxc7 {[%clk 0:00:05.2]} 37. Ne6+
{[%clk 0:00:20.2]} 1-0

[Event "*** Titled Tuesday Blitz"]
[Site "Chess.com"]
[Date "2020.04.28"]
[Round "5"]
[White "Batica1984"]
[Black "francyIM"]
[Result "1-0"]
[WhiteElo "2815"]
[BlackElo "2716"]
[TimeControl "180+1"]
[EndTime "10:55:37 PDT"]
[Termination "Batica1984 won by resignation"]

1. e4 {[%clk 0:03:00.9]} 1... e5 {[%clk 0:02:57.5]} 2. Nf3 {[%clk 0:02:59.9]}
2... Nc6 {[%clk 0:02:57.4]} 3. Bb5 {[%clk 0:02:59]} 3... a6 {[%clk 0:02:57.2]}
4. Ba4 {[%clk 0:02:59]} 4... Nf6 {[%clk 0:02:57]} 5. O-O {[%clk 0:02:58.2]} 5...
Be7 {[%clk 0:02:56.1]} 6. Re1 {[%clk 0:02:57]} 6... b5 {[%clk 0:02:54.9]} 7. Bb3
{[%clk 0:02:56.8]} 7... d6 {[%clk 0:02:54.9]} 8. c3 {[%clk 0:02:55.7]} 8... O-O
{[%clk 0:02:54.4]} 9. d4 {[%clk 0:02:55.2]} 9... Bg4 {[%clk 0:02:53.2]} 10. d5
{[%clk 0:02:53.5]} 10... Na5 {[%clk 0:02:52.5]} 11. Bc2 {[%clk 0:02:53.7]} 11...
c6 {[%clk 0:02:52]} 12. h3 {[%clk 0:02:53.1]} 12... Bxf3 {[%clk 0:02:47.2]} 13.
Qxf3 {[%clk 0:02:52.3]} 13... cxd5 {[%clk 0:02:47]} 14. exd5 {[%clk 0:02:52.2]}
14... Nd7 {[%clk 0:02:43.7]} 15. Nd2 {[%clk 0:02:42]} 15... g6 {[%clk
0:02:41.5]} 16. b4 {[%clk 0:02:31]} 16... Nb7 {[%clk 0:02:41.3]} 17. a4 {[%clk
0:02:16.1]} 17... f5 {[%clk 0:02:27.9]} 18. axb5 {[%clk 0:02:12.2]} 18... axb5
{[%clk 0:02:28.2]} 19. Rxa8 {[%clk 0:02:11.8]} 19... Qxa8 {[%clk 0:02:27.8]} 20.
Qe2 {[%clk 0:02:10.8]} 20... Rc8 {[%clk 0:02:00.9]} 21. Qxb5 {[%clk 0:02:04.1]}
21... Nf6 {[%clk 0:02:00.6]} 22. c4 {[%clk 0:01:50.6]} 22... Nd8 {[%clk
0:01:52.8]} 23. Bb2 {[%clk 0:01:42.6]} 23... Nxd5 {[%clk 0:01:41.2]} 24. Ra1
{[%clk 0:01:35.9]} 24... Qb7 {[%clk 0:01:29.3]} 25. Qxb7 {[%clk 0:01:21.2]}
25... Nxb7 {[%clk 0:01:30.2]} 26. Ra7 {[%clk 0:01:21.2]} 26... Rc7 {[%clk
0:01:21.5]} 27. b5 {[%clk 0:01:07]} 27... Nb6 {[%clk 0:01:06.2]} 28. c5 {[%clk
0:00:57.8]} 28... dxc5 {[%clk 0:00:54.6]} 29. Bxe5 {[%clk 0:00:57.6]} 29... Rd7
{[%clk 0:00:54.3]} 30. Bb3+ {[%clk 0:00:57.3]} 30... Kf8 {[%clk 0:00:49.8]} 31.
Nc4 {[%clk 0:00:56.9]} 31... Nxc4 {[%clk 0:00:29.6]} 32. Bxc4 {[%clk 0:00:56.5]}
32... Rd1+ {[%clk 0:00:19.8]} 33. Kh2 {[%clk 0:00:56.1]} 33... Bd6 {[%clk
0:00:20.4]} 34. f4 {[%clk 0:00:40.6]} 34... Bxe5 {[%clk 0:00:17.5]} 35. fxe5
{[%clk 0:00:40.7]} 35... Nd8 {[%clk 0:00:18.4]} 36. e6 {[%clk 0:00:35.8]} 36...
Re1 {[%clk 0:00:18.2]} 37. b6 {[%clk 0:00:35.7]} 37... Ke8 {[%clk 0:00:16.7]}
38. b7 {[%clk 0:00:32.6]} 38... Rb1 {[%clk 0:00:15.4]} 39. Bd5 {[%clk
0:00:31.5]} 39... c4 {[%clk 0:00:15.2]} 40. Ra8 {[%clk 0:00:31.4]} 40... c3
{[%clk 0:00:07.7]} 41. b8=Q {[%clk 0:00:31.5]} 41... Rxb8 {[%clk 0:00:07.9]} 42.
Rxb8 {[%clk 0:00:31.7]} 42... c2 {[%clk 0:00:08.8]} 1-0

[Event "*** Titled Tuesday Blitz"]
[Site "Chess.com"]
[Date "2020.04.28"]
[Round "5"]
[White "relaxx87"]
[Black "annacramling"]
[Result "1-0"]
[WhiteElo "2691"]
[BlackElo "1939"]
[TimeControl "180+1"]
[EndTime "10:55:37 PDT"]
[Termination "relaxx87 won by resignation"]

1. e4 {[%clk 0:03:00.9]} 1... c5 {[%clk 0:02:58.7]} 2. Nf3 {[%clk 0:03:00.1]}
2... a6 {[%clk 0:02:58.7]} 3. c3 {[%clk 0:02:58.3]} 3... d5 {[%clk 0:02:58.3]}
4. exd5 {[%clk 0:02:57.7]} 4... Qxd5 {[%clk 0:02:59.2]} 5. d4 {[%clk 0:02:57.5]}
5... Nf6 {[%clk 0:02:58.9]} 6. Be2 {[%clk 0:02:57.2]} 6... Nc6 {[%clk
0:02:56.4]} 7. O-O {[%clk 0:02:56]} 7... e6 {[%clk 0:02:56.5]} 8. Na3 {[%clk
0:02:55.6]} 8... cxd4 {[%clk 0:02:43.5]} 9. Nc4 {[%clk 0:02:54.7]} 9... Qd8
{[%clk 0:02:36.1]} 10. cxd4 {[%clk 0:02:52]} 10... Be7 {[%clk 0:02:35.4]} 11.
Nce5 {[%clk 0:02:41.5]} 11... O-O {[%clk 0:02:11]} 12. Nxc6 {[%clk 0:02:38.3]}
12... bxc6 {[%clk 0:02:10.9]} 13. Qc2 {[%clk 0:02:38.8]} 13... Bb7 {[%clk
0:02:06.4]} 14. Be3 {[%clk 0:02:28.2]} 14... Rc8 {[%clk 0:01:59.5]} 15. Rfd1
{[%clk 0:02:26.9]} 15... Nd5 {[%clk 0:01:59.5]} 16. Rac1 {[%clk 0:02:08.7]}
16... Qb6 {[%clk 0:01:24.5]} 17. Ne5 {[%clk 0:02:06]} 17... Rfd8 {[%clk
0:01:17.9]} 18. Bd3 {[%clk 0:01:44]} 18... g6 {[%clk 0:00:57.6]} 19. Nc4 {[%clk
0:01:18.6]} 19... Qc7 {[%clk 0:00:48.7]} 20. Bd2 {[%clk 0:01:15.4]} 20... Nb4
{[%clk 0:00:24.8]} 21. Bxb4 {[%clk 0:01:11.8]} 21... Bxb4 {[%clk 0:00:24.5]} 22.
Be4 {[%clk 0:01:11.8]} 22... Be7 {[%clk 0:00:22]} 23. a3 {[%clk 0:01:05.2]}
23... Bf6 {[%clk 0:00:19.4]} 24. Ne5 {[%clk 0:00:56.2]} 24... Bxe5 {[%clk
0:00:17.5]} 25. dxe5 {[%clk 0:00:57.1]} 25... Qxe5 {[%clk 0:00:11.1]} 26. Bf3
{[%clk 0:00:55.9]} 26... Qc7 {[%clk 0:00:05]} 27. b4 {[%clk 0:00:54.6]} 27...
Rxd1+ {[%clk 0:00:04.7]} 28. Qxd1 {[%clk 0:00:55.5]} 28... Rd8 {[%clk
0:00:05.2]} 29. Qe2 {[%clk 0:00:54.5]} 29... Qb6 {[%clk 0:00:04.6]} 30. h4
{[%clk 0:00:52.5]} 30... a5 {[%clk 0:00:03.5]} 31. bxa5 {[%clk 0:00:36.5]} 31...
Qxa5 {[%clk 0:00:04.4]} 32. Qb2 {[%clk 0:00:35.3]} 32... Qb5 {[%clk 0:00:02]}
33. Qxb5 {[%clk 0:00:34.4]} 33... cxb5 {[%clk 0:00:02.9]} 34. Bxb7 {[%clk
0:00:34.6]} 34... Rd7 {[%clk 0:00:03]} 35. Bc6 {[%clk 0:00:33.8]} 35... Rd3
{[%clk 0:00:02.9]} 36. Ra1 {[%clk 0:00:31.9]} 36... Rd4 {[%clk 0:00:02.8]} 37.
Bxb5 {[%clk 0:00:31.4]} 37... Rxh4 {[%clk 0:00:02.9]} 38. a4 {[%clk 0:00:31.4]}
38... Rd4 {[%clk 0:00:03.1]} 39. a5 {[%clk 0:00:31.1]} 39... Rd8 {[%clk
0:00:03.1]} 40. a6 {[%clk 0:00:31]} 40... Ra8 {[%clk 0:00:03.2]} 41. a7 {[%clk
0:00:31]} 41... Kg7 {[%clk 0:00:02.7]} 42. Bc6 {[%clk 0:00:30.7]} 1-0